Workbook

Sheet Sheet1
A1: 编号【KEY】 | B1: 初始站台数量 | C1: 网格行数 | D1: 网格列数 | E1: 车辆类型(0小车,1是巴士,2是飞机,不填随机) | F1: 出车颜色配置(不填随机) | G1: 障碍物坐标 | H1: 出入口坐标 | I1: 出入口人物颜色顺序(右侧颜色种类序号) | J1: 出入口方向(0是左边,1是右) | K1: 人物坐标 | L1: 人物颜色(颜色种类序号) | M1: 颜色种类(人、车辆） | N1: 整局总人数(3的倍数,填了自动生成关卡,会忽略左边手动配置)
A2: id | B2: stationCount | C2: gridRowCount | D2: gridColCount | E2: vehicleType | F2: vehicleColor | G2: obstaclePosition | H2: subwayPosition | I2: subwayInfo | J2: subwayDir | K2: peoplePosition | L2: peopleColor | M2: levelColor | N2: peopleCount
A3: int | B3: int | C3: int | D3: int | E3: int | F3: any | G3: any | H3: any | I3: any | J3: any | K3: any | L3: any | M3: any | N3: int
A4: serve_no | B4: serve_no | C4: serve_no | D4: serve_no | E4: serve_no | F4: serve_no | G4: serve_no | H4: serve_no | I4: serve_no | J4: serve_no | K4: serve_no | L4: serve_no | M4: serve_no | N4: serve_no
A5: client | B5: client | C5: client | D5: client | E5: client | F5: client | G5: client | H5: client | I5: client | J5: client | K5: client | L5: client | M5: client | N5: client
A6: 1 | B6: 5 | C6: 2 | D6: 3 | E6: 0 | F6: [1,2] | K6: [[1,1],[1,2],[1,3],[2,1],[2,2],[2,3]] | L6: [1,1,1,2,2,2] | M6: ["#94E6F5","#E76969","#0000ff"]
A7: 2 | B7: 5 | C7: 8 | D7: 8 | E7: 1 | G7: [[1,1],[4,5]] | H7: [[4,2],[6,4]] | I7: [[1,2,3,1,2,3,1,2,3],[1,2,3,1,2,3]] | J7: [0,1] | K7: [[1,2],[1,3],[1,4],[1,5],[1,6],[1,7],[1,8],[2,1],[2,2],[2,3],[2,4],[2,5],[2,6],[2,7],[2,8],[3,1],[3,2],[3,3],[3,4],[3,5],[3,6],[3,7],[3,8],[4,1],[4,3],[4,4],[4,6],[4,7],[4,8],[5,1],[5,2],[5,3],[5,4],[5,5],[5,6],[5,7],[5,8],[6,1],[6,2],[6,3],[6,5],[6,6],[6,7],[6,8],[7,1],[7,2],[7,3],[7,4],[7,5],[7,6],[7,7],[7,8],[8,1],[8,2],[8,3],[8,4],[8,5],[8,6],[8,7],[8,8]] | L7: [1,3,1,1,3,3,2,2,2,3,1,1,1,2,1,2,2,1,3,2,3,2,2,3,1,1,3,1,2,2,1,1,2,1,2,2,2,2,3,1,2,2,3,3,1,3,3,2,2,3,1,1,3,1,1,3,1,2,3,3] | M7: ["#94E6F5","#00ff00","#0000ff"]
A8: 3 | B8: 5 | C8: 8 | D8: 8 | M8: ["#94E6F5","#00ff00","#0000ff"] | N8: 123
A9: 4 | B9: 5 | C9: 8 | D9: 8 | M9: ["#94E6F5","#00ff00","#0000ff"] | N9: 123
A10: 5 | B10: 5 | C10: 8 | D10: 8 | M10: ["#94E6F5","#00ff00","#0000ff"] | N10: 123
A11: 6 | B11: 5 | C11: 8 | D11: 8 | M11: ["#94E6F5","#00ff00","#0000ff"] | N11: 123
A12: 7 | B12: 5 | C12: 8 | D12: 8 | M12: ["#94E6F5","#00ff00","#0000ff"] | N12: 123
A13: 8 | B13: 5 | C13: 8 | D13: 8 | M13: ["#94E6F5","#00ff00","#0000ff"] | N13: 123
A14: 9 | B14: 5 | C14: 8 | D14: 8 | M14: ["#94E6F5","#00ff00","#0000ff"] | N14: 123
A15: 10 | B15: 5 | C15: 8 | D15: 8 | M15: ["#94E6F5","#00ff00","#0000ff"] | N15: 123
A16: 11 | B16: 5 | C16: 8 | D16: 8 | M16: ["#94E6F5","#00ff00","#0000ff"] | N16: 123
A17: 12 | B17: 5 | C17: 8 | D17: 8 | M17: ["#94E6F5","#00ff00","#0000ff"] | N17: 123
A18: 13 | B18: 5 | C18: 8 | D18: 8 | M18: ["#94E6F5","#00ff00","#0000ff"] | N18: 123
A19: 14 | B19: 5 | C19: 8 | D19: 8 | M19: ["#94E6F5","#00ff00","#0000ff"] | N19: 123
A20: 15 | B20: 5 | C20: 8 | D20: 8 | M20: ["#94E6F5","#00ff00","#0000ff"] | N20: 123
A21: 16 | B21: 5 | C21: 8 | D21: 8 | M21: ["#94E6F5","#00ff00","#0000ff"] | N21: 123
A22: 17 | B22: 5 | C22: 8 | D22: 8 | M22: ["#94E6F5","#00ff00","#0000ff"] | N22: 123
A23: 18 | B23: 5 | C23: 8 | D23: 8 | M23: ["#94E6F5","#00ff00","#0000ff"] | N23: 123
A24: 19 | B24: 5 | C24: 8 | D24: 8 | M24: ["#94E6F5","#00ff00","#0000ff"] | N24: 123
A25: 20 | B25: 5 | C25: 8 | D25: 8 | M25: ["#94E6F5","#00ff00","#0000ff"] | N25: 123
A26: 21 | B26: 5 | C26: 8 | D26: 8 | M26: ["#94E6F5","#00ff00","#0000ff"] | N26: 123
A27: 22 | B27: 5 | C27: 8 | D27: 8 | M27: ["#94E6F5","#00ff00","#0000ff"] | N27: 123
A28: 23 | B28: 5 | C28: 8 | D28: 8 | M28: ["#94E6F5","#00ff00","#0000ff"] | N28: 123
A29: 24 | B29: 5 | C29: 8 | D29: 8 | M29: ["#94E6F5","#00ff00","#0000ff"] | N29: 123
A30: 25 | B30: 5 | C30: 8 | D30: 8 | M30: ["#94E6F5","#00ff00","#0000ff"] | N30: 123
A31: 26 | B31: 5 | C31: 8 | D31: 8 | M31: ["#94E6F5","#00ff00","#0000ff"] | N31: 123
A32: 27 | B32: 5 | C32: 8 | D32: 8 | M32: ["#94E6F5","#00ff00","#0000ff"] | N32: 123
A33: 28 | B33: 5 | C33: 8 | D33: 8 | M33: ["#94E6F5","#00ff00","#0000ff"] | N33: 123
A34: 29 | B34: 5 | C34: 8 | D34: 8 | M34: ["#94E6F5","#00ff00","#0000ff"] | N34: 123
A35: 30 | B35: 5 | C35: 8 | D35: 8 | M35: ["#94E6F5","#00ff00","#0000ff"] | N35: 123
A36: 31 | B36: 5 | C36: 8 | D36: 8 | M36: ["#94E6F5","#00ff00","#0000ff"] | N36: 123
A37: 32 | B37: 5 | C37: 8 | D37: 8 | M37: ["#94E6F5","#00ff00","#0000ff"] | N37: 123
A38: 33 | B38: 5 | C38: 8 | D38: 8 | M38: ["#94E6F5","#00ff00","#0000ff"] | N38: 123
A39: 34 | B39: 5 | C39: 8 | D39: 8 | M39: ["#94E6F5","#00ff00","#0000ff"] | N39: 123
A40: 35 | B40: 5 | C40: 8 | D40: 8 | M40: ["#94E6F5","#00ff00","#0000ff"] | N40: 123
A41: 36 | B41: 5 | C41: 8 | D41: 8 | M41: ["#94E6F5","#00ff00","#0000ff"] | N41: 123
A42: 37 | B42: 5 | C42: 8 | D42: 8 | M42: ["#94E6F5","#00ff00","#0000ff"] | N42: 123
A43: 38 | B43: 5 | C43: 8 | D43: 8 | M43: ["#94E6F5","#00ff00","#0000ff"] | N43: 123
A44: 39 | B44: 5 | C44: 8 | D44: 8 | M44: ["#94E6F5","#00ff00","#0000ff"] | N44: 123
A45: 40 | B45: 5 | C45: 8 | D45: 8 | M45: ["#94E6F5","#00ff00","#0000ff"] | N45: 123
A46: 41 | B46: 5 | C46: 8 | D46: 8 | M46: ["#94E6F5","#00ff00","#0000ff"] | N46: 123
A47: 42 | B47: 5 | C47: 8 | D47: 8 | M47: ["#94E6F5","#00ff00","#0000ff"] | N47: 123
A48: 43 | B48: 5 | C48: 8 | D48: 8 | M48: ["#94E6F5","#00ff00","#0000ff"] | N48: 123
A49: 44 | B49: 5 | C49: 8 | D49: 8 | M49: ["#94E6F5","#00ff00","#0000ff"] | N49: 123
A50: 45 | B50: 5 | C50: 8 | D50: 8 | M50: ["#94E6F5","#00ff00","#0000ff"] | N50: 123
A51: 46 | B51: 5 | C51: 8 | D51: 8 | M51: ["#94E6F5","#00ff00","#0000ff"] | N51: 123
A52: 47 | B52: 5 | C52: 8 | D52: 8 | M52: ["#94E6F5","#00ff00","#0000ff"] | N52: 123
A53: 48 | B53: 5 | C53: 8 | D53: 8 | M53: ["#94E6F5","#00ff00","#0000ff"] | N53: 123
A54: 49 | B54: 5 | C54: 8 | D54: 8 | M54: ["#94E6F5","#00ff00","#0000ff"] | N54: 123
A55: 50 | B55: 5 | C55: 8 | D55: 8 | M55: ["#94E6F5","#00ff00","#0000ff"] | N55: 123
A56: 51 | B56: 5 | C56: 8 | D56: 8 | M56: ["#94E6F5","#00ff00","#0000ff"] | N56: 123
A57: 52 | B57: 5 | C57: 8 | D57: 8 | M57: ["#94E6F5","#00ff00","#0000ff"] | N57: 123
A58: 53 | B58: 5 | C58: 8 | D58: 8 | M58: ["#94E6F5","#00ff00","#0000ff"] | N58: 123
A59: 54 | B59: 5 | C59: 8 | D59: 8 | M59: ["#94E6F5","#00ff00","#0000ff"] | N59: 123
A60: 55 | B60: 5 | C60: 8 | D60: 8 | M60: ["#94E6F5","#00ff00","#0000ff"] | N60: 123
A61: 56 | B61: 5 | C61: 8 | D61: 8 | M61: ["#94E6F5","#00ff00","#0000ff"] | N61: 123
A62: 57 | B62: 5 | C62: 8 | D62: 8 | M62: ["#94E6F5","#00ff00","#0000ff"] | N62: 123
A63: 58 | B63: 5 | C63: 8 | D63: 8 | M63: ["#94E6F5","#00ff00","#0000ff"] | N63: 123
A64: 59 | B64: 5 | C64: 8 | D64: 8 | M64: ["#94E6F5","#00ff00","#0000ff"] | N64: 123
A65: 60 | B65: 5 | C65: 8 | D65: 8 | M65: ["#94E6F5","#00ff00","#0000ff"] | N65: 123
A66: 61 | B66: 5 | C66: 8 | D66: 8 | M66: ["#94E6F5","#00ff00","#0000ff"] | N66: 123
A67: 62 | B67: 5 | C67: 8 | D67: 8 | M67: ["#94E6F5","#00ff00","#0000ff"] | N67: 123
A68: 63 | B68: 5 | C68: 8 | D68: 8 | M68: ["#94E6F5","#00ff00","#0000ff"] | N68: 123
A69: 64 | B69: 5 | C69: 8 | D69: 8 | M69: ["#94E6F5","#00ff00","#0000ff"] | N69: 123
A70: 65 | B70: 5 | C70: 8 | D70: 8 | M70: ["#94E6F5","#00ff00","#0000ff"] | N70: 123
A71: 66 | B71: 5 | C71: 8 | D71: 8 | M71: ["#94E6F5","#00ff00","#0000ff"] | N71: 123
A72: 67 | B72: 5 | C72: 8 | D72: 8 | M72: ["#94E6F5","#00ff00","#0000ff"] | N72: 123
A73: 68 | B73: 5 | C73: 8 | D73: 8 | M73: ["#94E6F5","#00ff00","#0000ff"] | N73: 123
A74: 69 | B74: 5 | C74: 8 | D74: 8 | M74: ["#94E6F5","#00ff00","#0000ff"] | N74: 123
A75: 70 | B75: 5 | C75: 8 | D75: 8 | M75: ["#94E6F5","#00ff00","#0000ff"] | N75: 123
A76: 71 | B76: 5 | C76: 8 | D76: 8 | M76: ["#94E6F5","#00ff00","#0000ff"] | N76: 123
A77: 72 | B77: 5 | C77: 8 | D77: 8 | M77: ["#94E6F5","#00ff00","#0000ff"] | N77: 123
A78: 73 | B78: 5 | C78: 8 | D78: 8 | M78: ["#94E6F5","#00ff00","#0000ff"] | N78: 123
A79: 74 | B79: 5 | C79: 8 | D79: 8 | M79: ["#94E6F5","#00ff00","#0000ff"] | N79: 123
A80: 75 | B80: 5 | C80: 8 | D80: 8 | M80: ["#94E6F5","#00ff00","#0000ff"] | N80: 123
A81: 76 | B81: 5 | C81: 8 | D81: 8 | M81: ["#94E6F5","#00ff00","#0000ff"] | N81: 123
A82: 77 | B82: 5 | C82: 8 | D82: 8 | M82: ["#94E6F5","#00ff00","#0000ff"] | N82: 123
A83: 78 | B83: 5 | C83: 8 | D83: 8 | M83: ["#94E6F5","#00ff00","#0000ff"] | N83: 123
A84: 79 | B84: 5 | C84: 8 | D84: 8 | M84: ["#94E6F5","#00ff00","#0000ff"] | N84: 123
A85: 80 | B85: 5 | C85: 8 | D85: 8 | M85: ["#94E6F5","#00ff00","#0000ff"] | N85: 123
A86: 81 | B86: 5 | C86: 8 | D86: 8 | M86: ["#94E6F5","#00ff00","#0000ff"] | N86: 123
A87: 82 | B87: 5 | C87: 8 | D87: 8 | M87: ["#94E6F5","#00ff00","#0000ff"] | N87: 123
A88: 83 | B88: 5 | C88: 8 | D88: 8 | M88: ["#94E6F5","#00ff00","#0000ff"] | N88: 123
A89: 84 | B89: 5 | C89: 8 | D89: 8 | M89: ["#94E6F5","#00ff00","#0000ff"] | N89: 123
A90: 85 | B90: 5 | C90: 8 | D90: 8 | M90: ["#94E6F5","#00ff00","#0000ff"] | N90: 123
A91: 86 | B91: 5 | C91: 8 | D91: 8 | M91: ["#94E6F5","#00ff00","#0000ff"] | N91: 123
A92: 87 | B92: 5 | C92: 8 | D92: 8 | M92: ["#94E6F5","#00ff00","#0000ff"] | N92: 123
A93: 88 | B93: 5 | C93: 8 | D93: 8 | M93: ["#94E6F5","#00ff00","#0000ff"] | N93: 123
A94: 89 | B94: 5 | C94: 8 | D94: 8 | M94: ["#94E6F5","#00ff00","#0000ff"] | N94: 123
A95: 90 | B95: 5 | C95: 8 | D95: 8 | M95: ["#94E6F5","#00ff00","#0000ff"] | N95: 123
A96: 91 | B96: 5 | C96: 8 | D96: 8 | M96: ["#94E6F5","#00ff00","#0000ff"] | N96: 123
A97: 92 | B97: 5 | C97: 8 | D97: 8 | M97: ["#94E6F5","#00ff00","#0000ff"] | N97: 123
A98: 93 | B98: 5 | C98: 8 | D98: 8 | M98: ["#94E6F5","#00ff00","#0000ff"] | N98: 123
A99: 94 | B99: 5 | C99: 8 | D99: 8 | M99: ["#94E6F5","#00ff00","#0000ff"] | N99: 123
A100: 95 | B100: 5 | C100: 8 | D100: 8 | M100: ["#94E6F5","#00ff00","#0000ff"] | N100: 123
A101: 96 | B101: 5 | C101: 8 | D101: 8 | M101: ["#94E6F5","#00ff00","#0000ff"] | N101: 123
A102: 97 | B102: 5 | C102: 8 | D102: 8 | M102: ["#94E6F5","#00ff00","#0000ff"] | N102: 123
A103: 98 | B103: 5 | C103: 8 | D103: 8 | M103: ["#94E6F5","#00ff00","#0000ff"] | N103: 123
A104: 99 | B104: 5 | C104: 8 | D104: 8 | M104: ["#94E6F5","#00ff00","#0000ff"] | N104: 123
A105: 100 | B105: 5 | C105: 8 | D105: 8 | M105: ["#94E6F5","#00ff00","#0000ff"] | N105: 123

Sheet Sheet2
H2: 1 | I2: 100 | L2: 1 | M2: =CEILING($S$2*L2^$R$2+$T$2,10) -> 0 | N2: =N1+M2 -> 0 | O2: =N2/2000 -> 0 | P2: =O2/12 -> 0 | R2: 2.15 | S2: 3.73 | T2: -10
H3: 2 | I3: 200 | L3: 2 | M3: =CEILING($S$2*L3^$R$2+$T$2,10) -> 10 | N3: =N2+M3 -> 10 | O3: =N3/2000 -> 0.005 | P3: 0.0004166666667
H4: 3 | I4: 500 | L4: 3 | M4: 30 | N4: 40 | O4: 0.02 | P4: 0.001666666667 | R4: =SUM(M2:M101) -> 2399400 | S4: =J6-R4 -> 600
H5: 4 | I5: 1000 | L5: 4 | M5: 70 | N5: 110 | O5: 0.055 | P5: 0.004583333333
H6: 5 | I6: 2000 | J6: =I6*1200 -> 2400000 | L6: 5 | M6: 110 | N6: 220 | O6: 0.11 | P6: 0.009166666667
L7: 6 | M7: 170 | N7: 390 | O7: 0.195 | P7: 0.01625
L8: 7 | M8: 240 | N8: 630 | O8: 0.315 | P8: 0.02625
L9: 8 | M9: 320 | N9: 950 | O9: 0.475 | P9: 0.03958333333
L10: 9 | M10: 420 | N10: 1370 | O10: 0.685 | P10: 0.05708333333
L11: 10 | M11: 520 | N11: 1890 | O11: 0.945 | P11: 0.07875
L12: 11 | M12: 640 | N12: 2530 | O12: 1.265 | P12: 0.1054166667
L13: 12 | M13: 770 | N13: 3300 | O13: 1.65 | P13: 0.1375
L14: 13 | M14: 920 | N14: 4220 | O14: 2.11 | P14: 0.1758333333
L15: 14 | M15: 1080 | N15: 5300 | O15: 2.65 | P15: 0.2208333333
L16: 15 | M16: 1250 | N16: 6550 | O16: 3.275 | P16: 0.2729166667
L17: 16 | M17: 1440 | N17: 7990 | O17: 3.995 | P17: 0.3329166667
L18: 17 | M18: 1640 | N18: 9630 | O18: 4.815 | P18: 0.40125
L19: 18 | M19: 1860 | N19: 11490 | O19: 5.745 | P19: 0.47875
L20: 19 | M20: 2090 | N20: 13580 | O20: 6.79 | P20: 0.5658333333
L21: 20 | M21: 2330 | N21: 15910 | O21: 7.955 | P21: 0.6629166667
L22: 21 | M22: 2590 | N22: 18500 | O22: 9.25 | P22: 0.7708333333
L23: 22 | M23: 2870 | N23: 21370 | O23: 10.685 | P23: 0.8904166667
L24: 23 | M24: 3150 | N24: 24520 | O24: 12.26 | P24: 1.021666667
L25: 24 | M25: 3460 | N25: 27980 | O25: 13.99 | P25: 1.165833333
L26: 25 | M26: 3770 | N26: 31750 | O26: 15.875 | P26: 1.322916667
L27: 26 | M27: 4110 | N27: 35860 | O27: 17.93 | P27: 1.494166667
L28: 27 | M28: 4450 | N28: 40310 | O28: 20.155 | P28: 1.679583333
L29: 28 | M29: 4820 | N29: 45130 | O29: 22.565 | P29: 1.880416667
L30: 29 | M30: 5190 | N30: 50320 | O30: 25.16 | P30: 2.096666667
L31: 30 | M31: 5590 | N31: 55910 | O31: 27.955 | P31: 2.329583333
L32: 31 | M32: 5990 | N32: 61900 | O32: 30.95 | P32: 2.579166667
L33: 32 | M33: 6420 | N33: 68320 | O33: 34.16 | P33: 2.846666667
L34: 33 | M34: 6860 | N34: 75180 | O34: 37.59 | P34: =O34/12 -> 3.1325
L35: 34 | M35: 7310 | N35: 82490 | O35: 41.245 | P35: 3.437083333
L36: 35 | M36: 7780 | N36: 90270 | O36: 45.135 | P36: 3.76125
L37: 36 | M37: 8270 | N37: 98540 | O37: 49.27 | P37: 4.105833333
L38: 37 | M38: 8770 | N38: 107310 | O38: 53.655 | P38: 4.47125
L39: 38 | M39: 9290 | N39: 116600 | O39: 58.3 | P39: 4.858333333
L40: 39 | M40: 9820 | N40: 126420 | O40: 63.21 | P40: 5.2675
L41: 40 | M41: 10370 | N41: 136790 | O41: 68.395 | P41: 5.699583333
L42: 41 | M42: 10940 | N42: 147730 | O42: 73.865 | P42: 6.155416667
L43: 42 | M43: 11520 | N43: 159250 | O43: 79.625 | P43: 6.635416667
L44: 43 | M44: 12120 | N44: 171370 | O44: 85.685 | P44: 7.140416667
L45: 44 | M45: 12730 | N45: 184100 | O45: 92.05 | P45: 7.670833333
L46: 45 | M46: 13360 | N46: 197460 | O46: 98.73 | P46: 8.2275
L47: 46 | M47: 14010 | N47: 211470 | O47: 105.735 | P47: 8.81125
L48: 47 | M48: 14670 | N48: 226140 | O48: 113.07 | P48: 9.4225
L49: 48 | M49: 15350 | N49: 241490 | O49: 120.745 | P49: 10.06208333
L50: 49 | M50: 16050 | N50: 257540 | O50: 128.77 | P50: 10.73083333
L51: 50 | M51: 16760 | N51: 274300 | O51: 137.15 | P51: 11.42916667
L52: 51 | M52: 17490 | N52: 291790 | O52: 145.895 | P52: 12.15791667
L53: 52 | M53: 18240 | N53: 310030 | O53: 155.015 | P53: 12.91791667
L54: 53 | M54: 19000 | N54: 329030 | O54: 164.515 | P54: 13.70958333
L55: 54 | M55: 19780 | N55: 348810 | O55: 174.405 | P55: 14.53375
L56: 55 | M56: 20580 | N56: 369390 | O56: 184.695 | P56: 15.39125
L57: 56 | M57: 21390 | N57: 390780 | O57: 195.39 | P57: 16.2825
L58: 57 | M58: 22220 | N58: 413000 | O58: 206.5 | P58: 17.20833333
L59: 58 | M59: 23070 | N59: 436070 | O59: 218.035 | P59: 18.16958333
L60: 59 | M60: 23930 | N60: 460000 | O60: 230 | P60: 19.16666667
L61: 60 | M61: 24810 | N61: 484810 | O61: 242.405 | P61: 20.20041667
L62: 61 | M62: 25710 | N62: 510520 | O62: 255.26 | P62: 21.27166667
L63: 62 | M63: 26620 | N63: 537140 | O63: 268.57 | P63: 22.38083333
L64: 63 | M64: 27560 | N64: 564700 | O64: 282.35 | P64: 23.52916667
L65: 64 | M65: 28500 | N65: 593200 | O65: 296.6 | P65: 24.71666667
L66: 65 | M66: 29470 | N66: 622670 | O66: 311.335 | P66: =O66/12 -> 25.94458333
L67: 66 | M67: =CEILING($S$2*L67^$R$2+$T$2,10) -> 30450 | N67: =N66+M67 -> 653120 | O67: =N67/2000 -> 326.56 | P67: 27.21333333
L68: 67 | M68: 31460 | N68: 684580 | O68: 342.29 | P68: 28.52416667
L69: 68 | M69: 32470 | N69: 717050 | O69: 358.525 | P69: 29.87708333
L70: 69 | M70: 33510 | N70: 750560 | O70: 375.28 | P70: 31.27333333
L71: 70 | M71: 34560 | N71: 785120 | O71: 392.56 | P71: 32.71333333
L72: 71 | M72: 35630 | N72: 820750 | O72: 410.375 | P72: 34.19791667
L73: 72 | M73: 36720 | N73: 857470 | O73: 428.735 | P73: 35.72791667
L74: 73 | M74: 37830 | N74: 895300 | O74: 447.65 | P74: 37.30416667
L75: 74 | M75: 38950 | N75: 934250 | O75: 467.125 | P75: 38.92708333
L76: 75 | M76: 40090 | N76: 974340 | O76: 487.17 | P76: 40.5975
L77: 76 | M77: 41250 | N77: 1015590 | O77: 507.795 | P77: 42.31625
L78: 77 | M78: 42420 | N78: 1058010 | O78: 529.005 | P78: 44.08375
L79: 78 | M79: 43620 | N79: 1101630 | O79: 550.815 | P79: 45.90125
L80: 79 | M80: 44830 | N80: 1146460 | O80: 573.23 | P80: 47.76916667
L81: 80 | M81: 46060 | N81: 1192520 | O81: 596.26 | P81: 49.68833333
L82: 81 | M82: 47300 | N82: 1239820 | O82: 619.91 | P82: 51.65916667
L83: 82 | M83: 48570 | N83: 1288390 | O83: 644.195 | P83: 53.68291667
L84: 83 | M84: 49850 | N84: 1338240 | O84: 669.12 | P84: 55.76
L85: 84 | M85: 51150 | N85: 1389390 | O85: 694.695 | P85: 57.89125
L86: 85 | M86: 52470 | N86: 1441860 | O86: 720.93 | P86: 60.0775
L87: 86 | M87: 53810 | N87: 1495670 | O87: 747.835 | P87: 62.31958333
L88: 87 | M88: 55160 | N88: 1550830 | O88: 775.415 | P88: 64.61791667
L89: 88 | M89: 56530 | N89: 1607360 | O89: 803.68 | P89: 66.97333333
L90: 89 | M90: 57920 | N90: 1665280 | O90: 832.64 | P90: 69.38666667
L91: 90 | M91: 59330 | N91: 1724610 | O91: 862.305 | P91: 71.85875
L92: 91 | M92: 60760 | N92: 1785370 | O92: 892.685 | P92: 74.39041667
L93: 92 | M93: 62200 | N93: 1847570 | O93: 923.785 | P93: 76.98208333
L94: 93 | M94: 63670 | N94: 1911240 | O94: 955.62 | P94: 79.635
L95: 94 | M95: 65150 | N95: 1976390 | O95: 988.195 | P95: 82.34958333
L96: 95 | M96: 66650 | N96: 2043040 | O96: 1021.52 | P96: 85.12666667
L97: 96 | M97: 68160 | N97: 2111200 | O97: 1055.6 | P97: 87.96666667
L98: 97 | M98: 69700 | N98: 2180900 | O98: 1090.45 | P98: =O98/12 -> 90.87083333
L99: 98 | M99: 71250 | N99: 2252150 | O99: 1126.075 | P99: 93.83958333
L100: 99 | M100: 72830 | N100: 2324980 | O100: 1162.49 | P100: 96.87416667
L101: 100 | M101: 74420 | N101: 2399400 | O101: 1199.7 | P101: 99.975
